fUST/lending_fUST_20251219
["ID","MTS","AMOUNT","RATE_DAILY","PERIOD"]
[399166160,1766130687401,-500.0,0.00056986,120]
[399166161,1766130687411,-1545.59,0.00056986,120]
[399166162,1766130687422,-601.18,0.00056986,120]
[399166163,1766130687432,-500.0,0.00056986,120]
[399166164,1766130687441,-500.0,0.00056986,120]
[399166165,1766130687451,-500.0,0.00056986,120]
[399166166,1766130687460,-3273.78,0.00056986,120]
[399166167,1766130687473,-2163.92,0.00056986,120]
[399166168,1766130687482,-463.04,0.00056986,120]
[399166169,1766130687492,-615.54,0.00056986,120]
[399166170,1766130687501,-2441.66,0.00056986,3]
[399166171,1766130687510,-500.0,0.00056986,120]
[399166172,1766130687520,-500.0,0.00056986,120]
[399166173,1766130687529,-535.83,0.00056986,120]
[399166174,1766130687539,-500.0,0.00056986,120]
[399166175,1766130687548,-970.05,0.00056986,120]
[399166176,1766130687558,-1307.75,0.00056986,120]
[399166177,1766130687567,-500.0,0.00056986,120]
[399166178,1766130687576,-529.54,0.00056986,120]
[399166179,1766130687586,-500.0,0.00056986,120]
[399166180,1766130687594,-500.0,0.00056986,120]
[399166181,1766130687603,-422.68455938,0.00056986,120]
[399166182,1766130687612,-619.49,0.00056986,120]
[399166183,1766130687622,-500.0,0.00056986,120]
[399166184,1766130687630,-2004.58,0.00056986,120]
[399166185,1766130687640,-500.0,0.00056986,120]
[399166186,1766130687654,-555.38,0.00056986,120]
[399166187,1766130687663,-500.0,0.00056986,120]
[399166188,1766130687673,-570.98,0.00056986,120]
[399166189,1766130687682,-617.64,0.00056986,120]
[399166190,1766130687691,-500.0,0.00056986,120]
[399166191,1766130687700,-500.0,0.00056986,120]
[399166192,1766130687709,-708.43,0.00056986,120]
[399166193,1766130687719,-756.93,0.00056986,120]
[399166194,1766130687728,-1547.5,0.00056986,120]
[399166195,1766130687738,-564.73,0.00056986,120]
[399166196,1766130687747,-788.22,0.00056986,120]
[399166197,1766130687756,-397.31262465,0.00056986,120]
[399166198,1766130687765,-500.0,0.00056986,120]
[399166199,1766130687775,-500.0,0.00056986,120]
[399166200,1766130687784,-500.0,0.00056986,120]
[399166201,1766130687793,-169.99692067,0.00056986,120]
[399166202,1766130687802,-1289.84,0.00056986,120]
[399166203,1766130687811,-500.0,0.00056986,120]
[399166204,1766130687821,-315.9503836,0.00056986,60]
[399166205,1766130687830,-153.0,0.00056986,60]
[399166206,1766130687839,-153.0,0.00056986,60]
[399166207,1766130687848,-153.0,0.00056986,60]
[399166208,1766130687858,-153.0,0.00056986,60]
[399166209,1766130687867,-2360678.98051665,0.00057,10]
[399166210,1766130687991,-150.0,0.00057,120]
[399166211,1766130688001,-506.0,0.00057,120]
[399166212,1766130688011,-13014.24814228,0.00057,120]
[399166213,1766130688020,-2334271.09205692,0.00057,120]
[399166214,1766130688030,-500.0,0.00057,120]
[399166215,1766130688039,-500.0,0.00057,120]
[399166216,1766130688049,-500.0,0.00057,120]
[399166217,1766130688059,-500.0,0.00057,45]
[399166218,1766130688069,-500.0,0.00057,120]
[399166219,1766130688079,-151.44692879,0.00057068,30]
[399166220,1766130688089,-343.51481408,0.000572,120]
[399166221,1766130688098,-900.0,0.00057252,120]
[399166222,1766130688108,-780.17,0.0005726,120]
[399166223,1766130688117,-500.0,0.0005726,7]
[399166224,1766130688128,-500.0,0.0005726,120]
[399166225,1766130688137,-1000.0,0.0005726,2]
[399166226,1766130688147,-527.64,0.0005726,120]
[399166227,1766130688156,-210.73345245,0.0005726,120]
[399166228,1766130688165,-808.56,0.0005726,120]
[399166229,1766130688174,-500.0,0.0005726,5]
[399166230,1766130688184,-500.0,0.0005726,120]
[399166231,1766130688193,-500.0,0.0005726,30]
[399166232,1766130688203,-3828.03,0.0005726,120]
[399166233,1766130688212,-1000.0,0.0005726,2]
[399166234,1766130688222,-286.57945691,0.0005726,120]
[399166235,1766130688231,-500.0,0.0005726,120]
[399166236,1766130688241,-500.0,0.0005726,120]
[399166237,1766130688250,-1164.05,0.0005726,120]
[399166238,1766130688261,-500.0,0.0005726,2]
[399166239,1766130688270,-500.0,0.0005726,120]
[399166240,1766130688279,-512.80422541,0.0005726,120]
[399166241,1766130688289,-500.0,0.0005726,60]
[399166242,1766130688299,-538.52,0.0005726,120]
[399166243,1766130688308,-500.0,0.0005726,120]
[399166244,1766130688317,-500.0,0.0005726,120]
[399166245,1766130688327,-1789.97,0.0005726,120]
[399166246,1766130688336,-512.97,0.0005726,120]
[399166247,1766130688346,-500.0,0.0005726,120]
[399166248,1766130688355,-500.0,0.0005726,120]
[399166249,1766130688364,-1954.53,0.0005726,120]
[399166250,1766130688374,-485.58212509,0.0005726,120]
[399166251,1766130688383,-500.0,0.0005726,120]
[399166252,1766130688393,-1050.87,0.0005726,120]
[399166253,1766130688402,-3817.38,0.0005726,120]
[399166254,1766130688411,-500.0,0.0005726,120]
[399166255,1766130688421,-500.0,0.0005726,120]
[399166256,1766130688430,-500.0,0.0005726,30]
[399166257,1766130688440,-1315.23,0.0005726,120]
[399166258,1766130688449,-500.0,0.0005726,120]
[399166259,1766130688459,-500.0,0.0005726,120]
[399166260,1766130688468,-500.0,0.0005726,120]
[399166261,1766130688479,-1071.88,0.0005726,120]
[399166262,1766130688489,-500.0,0.0005726,120]
[399166263,1766130688499,-500.0,0.0005726,120]
[399166264,1766130688512,-500.0,0.0005726,120]
[399166265,1766130688521,-500.0,0.0005726,120]
[399166266,1766130688530,-500.0,0.0005726,120]
[399166267,1766130688541,-500.0,0.0005726,120]
[399166268,1766130688551,-524.88,0.0005726,120]
[399166269,1766130688561,-500.0,0.0005726,120]
[399166270,1766130688570,-696.02,0.0005726,120]
[399166271,1766130688580,-1278.98,0.0005726,120]
[399166272,1766130688590,-848.2,0.0005726,120]
[399166273,1766130688599,-682.7,0.0005726,120]
[399166274,1766130688611,-1176.57,0.0005726,120]
[399166275,1766130688621,-500.0,0.0005726,120]
[399166276,1766130688630,-365.94372952,0.0005726,120]
[399166277,1766130688640,-500.0,0.0005726,120]
[399166278,1766130688654,-500.0,0.0005726,120]
[399166279,1766130688664,-500.0,0.0005726,120]
[399166280,1766130688674,-500.0,0.0005726,120]
[399166281,1766130688683,-628.56,0.0005726,120]
[399166282,1766130688693,-506.34,0.0005726,120]
[399166283,1766130688703,-1384.97,0.0005726,120]
[399166284,1766130688712,-500.0,0.0005726,120]
[399166285,1766130688723,-1052.14,0.0005726,120]
[399166286,1766130688734,-500.0,0.0005726,120]
[399166287,1766130688743,-500.0,0.0005726,120]
[399166288,1766130688752,-500.0,0.0005726,120]
[399166289,1766130688761,-1084.45,0.0005726,120]
[399166290,1766130688771,-898.43,0.0005726,120]
[399166291,1766130688780,-500.0,0.0005726,120]
[399166292,1766130688789,-500.0,0.0005726,30]
[399166293,1766130688798,-841.83,0.0005726,120]
[399166294,1766130688808,-500.0,0.0005726,120]
[399166295,1766130688817,-500.0,0.0005726,120]
[399166296,1766130688826,-500.0,0.0005726,120]
[399166297,1766130688835,-500.0,0.0005726,120]
[399166298,1766130688844,-1049.58,0.0005726,120]
[399166299,1766130688854,-500.0,0.0005726,120]
[399166300,1766130688863,-500.0,0.0005726,120]
[399166301,1766130688872,-5832.94,0.0005726,120]
[399166302,1766130688882,-500.0,0.0005726,120]
[399166303,1766130688891,-500.0,0.0005726,120]
[399166304,1766130688900,-1123.95,0.0005726,120]
[399166305,1766130688909,-500.0,0.0005726,120]
[399166306,1766130688918,-500.0,0.0005726,120]
[399166307,1766130688927,-500.0,0.0005726,120]
[399166308,1766130688935,-500.0,0.0005726,120]
[399166309,1766130688945,-799.69,0.0005726,21]
[399166310,1766130688954,-565.42,0.0005726,120]
[399166311,1766130688962,-500.0,0.0005726,120]
[399166312,1766130688971,-500.0,0.0005726,120]
[399166313,1766130688981,-1745.65,0.0005726,120]
[399166314,1766130688990,-1000.0,0.0005726,120]
[399166315,1766130688999,-833.05,0.0005726,120]
[399166316,1766130689008,-501.72,0.0005726,120]
[399166317,1766130689018,-500.0,0.0005726,120]
[399166318,1766130689028,-500.0,0.0005726,120]
[399166319,1766130689037,-861.29,0.0005726,120]
[399166320,1766130689047,-500.0,0.0005726,120]
[399166321,1766130689058,-477.34477263,0.0005726,120]
[399166322,1766130689069,-4150.56,0.0005726,120]
[399166323,1766130689078,-500.0,0.0005726,120]
[399166324,1766130689086,-500.0,0.0005726,120]
[399166325,1766130689096,-500.0,0.0005726,120]
[399166326,1766130689105,-1545.59,0.0005726,120]
[399166327,1766130689114,-601.18,0.0005726,120]
[399166328,1766130689124,-500.0,0.0005726,120]
[399166329,1766130689133,-500.0,0.0005726,120]
[399166330,1766130689143,-500.0,0.0005726,120]
[399166331,1766130689153,-3273.78,0.0005726,120]
[399166332,1766130689163,-2163.92,0.0005726,120]
[399166333,1766130689172,-615.54,0.0005726,120]
[399166334,1766130689181,-2441.66,0.0005726,3]
[399166335,1766130689191,-500.0,0.0005726,120]
[399166336,1766130689200,-500.0,0.0005726,120]
[399166337,1766130689210,-535.83,0.0005726,120]
[399166338,1766130689219,-500.0,0.0005726,120]
[399166339,1766130689228,-970.05,0.0005726,120]
[399166340,1766130689237,-1307.75,0.0005726,120]
[399166341,1766130689247,-234.89843556,0.0005726,120]
[399166342,1766130689256,-529.54,0.0005726,120]
[399166343,1766130689265,-500.0,0.0005726,120]
[399166344,1766130689275,-500.0,0.0005726,120]
[399166345,1766130689284,-619.49,0.0005726,120]
[399166346,1766130689293,-500.0,0.0005726,120]
[399166347,1766130689302,-2004.58,0.0005726,120]
[399166348,1766130689311,-201.17998639,0.0005726,120]
[399166349,1766130689321,-555.38,0.0005726,120]
[399166350,1766130689330,-500.0,0.0005726,120]
[399166351,1766130689339,-570.98,0.0005726,120]
[399166352,1766130689347,-617.64,0.0005726,120]
[399166353,1766130689357,-500.0,0.0005726,120]
[399166354,1766130689366,-500.0,0.0005726,120]
[399166355,1766130689375,-708.43,0.0005726,120]
[399166356,1766130689385,-756.93,0.0005726,120]
[399166357,1766130689394,-1547.5,0.0005726,120]
[399166358,1766130689404,-564.73,0.0005726,120]
[399166359,1766130689413,-788.22,0.0005726,120]
[399166360,1766130689423,-500.0,0.0005726,120]
[399166361,1766130689432,-500.0,0.0005726,120]
[399166362,1766130689441,-500.0,0.0005726,120]
[399166363,1766130689450,-1289.84,0.0005726,120]
[399166364,1766130689459,-1208.656159,0.000574,28]
[399166365,1766130689469,-1736409.63321967,0.0005742,30]
[399166366,1766130689478,-2000.0,0.0005749,21]
[399166367,1766130689487,-780.17,0.00057534,120]
[399166368,1766130689497,-500.0,0.00057534,7]
[399166369,1766130689506,-500.0,0.00057534,120]
[399166370,1766130689515,-1000.0,0.00057534,2]
[399166371,1766130689525,-527.64,0.00057534,120]
[399166372,1766130689535,-500.0,0.00057534,120]
[399166373,1766130689544,-150.0,0.00057534,120]
[399166374,1766130689553,-150.0,0.00057534,120]
[399166375,1766130689563,-150.0,0.00057534,120]
[399166376,1766130689572,-500.0,0.00057534,120]
[399166377,1766130689581,-150.0,0.00057534,120]
[399166378,1766130689591,-150.0,0.00057534,120]
[399166379,1766130689600,-150.0,0.00057534,120]
[399166380,1766130689609,-500.0,0.00057534,120]
[399166381,1766130689619,-150.0,0.00057534,120]
[399166382,1766130689628,-500.0,0.00057534,120]
[399166383,1766130689637,-500.0,0.00057534,120]
[399166384,1766130689649,-150.0,0.00057534,120]
[399166385,1766130689658,-608.42094812,0.00057534,120]
[399166386,1766130689667,-150.0,0.00057534,120]
[399166387,1766130689677,-150.0,0.00057534,120]
[399166388,1766130689687,-500.0,0.00057534,120]
[399166389,1766130689697,-170.17563316,0.00057534,120]
[399166390,1766130689706,-150.0,0.00057534,120]
[399166391,1766130689715,-156.02485496,0.00057534,120]
[399166392,1766130689724,-500.0,0.00057534,120]
[399166393,1766130689733,-453.31100059,0.00057534,120]
[399166394,1766130689742,-160.51532233,0.00057534,120]
[399166395,1766130689751,-519.32776708,0.00057534,120]
[399166396,1766130689760,-150.0,0.00057534,120]
[399166397,1766130689769,-209.8680671,0.00057534,120]
[399166398,1766130689779,-150.0,0.00057534,120]
[399166399,1766130689788,-500.0,0.00057534,120]
[399166400,1766130689797,-500.0,0.00057534,120]
[399166401,1766130689806,-202.70258965,0.00057534,120]
[399166402,1766130689815,-205.52113159,0.00057534,120]
[399166403,1766130689824,-500.0,0.00057534,120]
[399166404,1766130689833,-500.0,0.00057534,120]
[399166405,1766130689842,-260.54391955,0.00057534,120]
[399166406,1766130689851,-500.0,0.00057534,120]
[399166407,1766130689860,-500.0,0.00057534,120]
[399166408,1766130689870,-500.0,0.00057534,120]
[399166409,1766130689879,-500.0,0.00057534,120]
[399166410,1766130689888,-500.0,0.00057534,120]
[399166411,1766130689897,-150.0,0.00057534,120]
[399166412,1766130689906,-500.0,0.00057534,120]
[399166413,1766130689915,-500.0,0.00057534,120]
[399166414,1766130689924,-157.20759915,0.00057534,120]
[399166415,1766130689933,-150.0,0.00057534,120]
[399166416,1766130689944,-330.08609258,0.00057534,120]
[399166417,1766130689955,-500.0,0.00057534,120]
[399166418,1766130689965,-150.0,0.00057534,120]
[399166419,1766130689975,-500.0,0.00057534,120]
[399166420,1766130689985,-150.0,0.00057534,120]
[399166421,1766130689995,-500.0,0.00057534,120]
[399166422,1766130690006,-156.53911844,0.00057534,120]
[399166423,1766130690016,-586.98614586,0.00057534,120]
[399166424,1766130690025,-808.56,0.00057534,120]
[399166425,1766130690035,-190.78828194,0.00057534,5]
[399166426,1766130690045,-500.0,0.00057534,120]
[399166427,1766130690055,-500.0,0.00057534,30]
[399166428,1766130690064,-3828.03,0.00057534,120]
[399166429,1766130690075,-1000.0,0.00057534,2]
[399166430,1766130690085,-584.08387793,0.00057534,120]
[399166431,1766130690095,-500.0,0.00057534,120]
[399166432,1766130690103,-1164.05,0.00057534,120]
[399166433,1766130690113,-500.0,0.00057534,2]
[399166434,1766130690122,-500.0,0.00057534,120]
[399166435,1766130690132,-500.0,0.00057534,60]
[399166436,1766130690141,-538.52,0.00057534,120]
[399166437,1766130690151,-500.0,0.00057534,120]
[399166438,1766130690160,-378.01303343,0.00057534,120]
[399166439,1766130690170,-1789.97,0.00057534,120]
[399166440,1766130690179,-512.97,0.00057534,120]
[399166441,1766130690189,-500.0,0.00057534,120]
[399166442,1766130690198,-500.0,0.00057534,120]
[399166443,1766130690208,-1954.53,0.00057534,120]
[399166444,1766130690218,-500.0,0.00057534,120]
[399166445,1766130690229,-1050.87,0.00057534,120]
[399166446,1766130690238,-3817.38,0.00057534,120]
[399166447,1766130690248,-500.0,0.00057534,120]
[399166448,1766130690258,-500.0,0.00057534,120]
[399166449,1766130690269,-500.0,0.00057534,30]
[399166450,1766130690387,-1315.23,0.00057534,120]
[399166451,1766130690397,-500.0,0.00057534,120]
[399166452,1766130690406,-500.0,0.00057534,120]
[399166453,1766130690415,-500.0,0.00057534,120]
[399166454,1766130690425,-1071.88,0.00057534,120]
[399166455,1766130690435,-500.0,0.00057534,120]
[399166456,1766130690445,-500.0,0.00057534,120]
[399166457,1766130690456,-500.0,0.00057534,120]
[399166458,1766130690466,-500.0,0.00057534,120]
[399166459,1766130690477,-500.0,0.00057534,120]
[399166460,1766130690487,-500.0,0.00057534,120]
[399166461,1766130690496,-524.88,0.00057534,120]
[399166462,1766130690505,-500.0,0.00057534,120]
[399166463,1766130690514,-696.02,0.00057534,120]
[399166464,1766130690524,-1278.98,0.00057534,120]
[399166465,1766130690535,-848.2,0.00057534,120]
[399166466,1766130690545,-682.7,0.00057534,120]
[399166467,1766130690555,-1176.57,0.00057534,120]
[399166468,1766130690564,-500.0,0.00057534,120]
[399166469,1766130690573,-500.0,0.00057534,120]
[399166470,1766130690582,-500.0,0.00057534,120]
[399166471,1766130690592,-500.0,0.00057534,120]
[399166472,1766130690601,-500.0,0.00057534,120]
[399166473,1766130690610,-628.56,0.00057534,120]
[399166474,1766130690619,-1384.97,0.00057534,120]
[399166475,1766130690628,-500.0,0.00057534,120]
[399166476,1766130690637,-1052.14,0.00057534,120]
[399166477,1766130690648,-500.0,0.00057534,120]
[399166478,1766130690657,-500.0,0.00057534,120]
[399166479,1766130690666,-500.0,0.00057534,120]
[399166480,1766130690675,-1084.45,0.00057534,120]
[399166481,1766130690687,-898.43,0.00057534,120]
[399166482,1766130690695,-500.0,0.00057534,120]
[399166483,1766130690705,-500.0,0.00057534,30]
[399166484,1766130690714,-841.83,0.00057534,120]
[399166485,1766130690725,-500.0,0.00057534,120]
[399166486,1766130690734,-500.0,0.00057534,120]
[399166487,1766130690743,-500.0,0.00057534,120]
[399166488,1766130690752,-500.0,0.00057534,120]
[399166489,1766130690761,-1049.58,0.00057534,120]
[399166490,1766130690770,-500.0,0.00057534,120]
[399166491,1766130690781,-500.0,0.00057534,120]
[399166492,1766130690790,-5832.94,0.00057534,120]
[399166493,1766130690800,-500.0,0.00057534,120]
[399166494,1766130690809,-500.0,0.00057534,120]
[399166495,1766130690818,-1123.95,0.00057534,120]
[399166496,1766130690827,-626.26677759,0.00057534,120]
[399166497,1766130690836,-500.0,0.00057534,120]
[399166498,1766130690845,-500.0,0.00057534,120]
[399166499,1766130690854,-500.0,0.00057534,120]
[399166500,1766130690862,-799.69,0.00057534,21]
[399166501,1766130690871,-565.42,0.00057534,120]
[399166502,1766130690880,-500.0,0.00057534,120]
[399166503,1766130690890,-500.0,0.00057534,120]
[399166504,1766130690899,-1745.65,0.00057534,120]
[399166505,1766130690910,-1000.0,0.00057534,120]
[399166506,1766130690919,-833.05,0.00057534,120]
[399166507,1766130690928,-150.0,0.00057534,120]
[399166508,1766130690938,-150.0,0.00057534,120]
[399166509,1766130690948,-150.0,0.00057534,120]
[399166510,1766130690957,-150.0,0.00057534,120]
[399166511,1766130690966,-157.19276191,0.00057534,120]
[399166512,1766130690977,-501.72,0.00057534,120]
[399166513,1766130690986,-150.0,0.00057534,120]
[399166514,1766130690996,-150.0,0.00057534,120]
[399166515,1766130691006,-500.0,0.00057534,120]
[399166516,1766130691017,-475.0,0.00057534,120]
[399166517,1766130691027,-500.0,0.00057534,120]
[399166518,1766130691036,-500.0,0.00057534,120]
[399166519,1766130691046,-500.0,0.00057534,120]
[399166520,1766130691055,-500.0,0.00057534,120]
[399166521,1766130691065,-500.0,0.00057534,120]
[399166522,1766130691076,-475.0,0.00057534,120]
[399166523,1766130691085,-500.0,0.00057534,120]
[399166524,1766130691095,-500.0,0.00057534,120]
[399166525,1766130691106,-500.0,0.00057534,120]
[399166526,1766130691115,-475.0,0.00057534,120]
[399166527,1766130691125,-500.0,0.00057534,120]
[399166528,1766130691135,-500.0,0.00057534,120]
[399166529,1766130691144,-500.0,0.00057534,120]
[399166530,1766130691154,-475.0,0.00057534,120]
[399166531,1766130691164,-500.0,0.00057534,120]
[399166532,1766130691173,-500.0,0.00057534,120]
[399166533,1766130691182,-584.29092116,0.00057534,120]
[399166534,1766130691192,-475.0,0.00057534,120]
[399166535,1766130691202,-500.0,0.00057534,120]
[399166536,1766130691212,-500.0,0.00057534,120]
[399166537,1766130691222,-475.0,0.00057534,120]
[399166538,1766130691231,-500.0,0.00057534,120]
[399166539,1766130691240,-297.15371718,0.00057534,120]
[399166540,1766130691249,-475.0,0.00057534,120]
[399166541,1766130691258,-500.0,0.00057534,120]
[399166542,1766130691268,-475.0,0.00057534,120]
[399166543,1766130691278,-500.0,0.00057534,120]
[399166544,1766130691287,-500.0,0.00057534,120]
[399166545,1766130691299,-500.0,0.00057534,120]
[399166546,1766130691308,-475.0,0.00057534,120]
[399166547,1766130691317,-500.0,0.00057534,120]
[399166548,1766130691330,-500.0,0.00057534,120]
[399166549,1766130691345,-500.0,0.00057534,120]
[399166550,1766130691354,-643.97861354,0.00057534,120]
[399166551,1766130691363,-500.0,0.00057534,120]
[399166552,1766130691372,-276.86288083,0.00057534,120]
[399166553,1766130691381,-500.0,0.00057534,120]
[399166554,1766130691391,-475.0,0.00057534,120]
[399166555,1766130691400,-500.0,0.00057534,120]
[399166556,1766130691409,-205.32828567,0.00057534,120]
[399166557,1766130691418,-475.0,0.00057534,120]
[399166558,1766130691428,-500.0,0.00057534,120]
[399166559,1766130691438,-500.0,0.00057534,120]
[399166560,1766130691447,-475.0,0.00057534,120]
[399166561,1766130691455,-500.0,0.00057534,120]
[399166562,1766130691465,-500.0,0.00057534,120]
[399166563,1766130691474,-475.0,0.00057534,120]
[399166564,1766130691483,-500.0,0.00057534,120]
[399166565,1766130691493,-500.0,0.00057534,120]
[399166566,1766130691503,-475.0,0.00057534,120]
[399166567,1766130691513,-500.0,0.00057534,120]
[399166568,1766130691523,-500.0,0.00057534,120]
[399166569,1766130691535,-500.0,0.00057534,120]
[399166570,1766130691544,-475.0,0.00057534,120]
[399166571,1766130691553,-500.0,0.00057534,120]
[399166572,1766130691562,-500.0,0.00057534,120]
[399166573,1766130691572,-500.0,0.00057534,120]
[399166574,1766130691582,-475.0,0.00057534,120]
[399166575,1766130691592,-500.0,0.00057534,120]
[399166576,1766130691601,-500.0,0.00057534,120]
[399166577,1766130691611,-475.0,0.00057534,120]
[399166578,1766130691619,-500.0,0.00057534,120]
[399166579,1766130691628,-206.29831861,0.00057534,120]
[399166580,1766130691638,-500.0,0.00057534,120]
[399166581,1766130691649,-475.0,0.00057534,120]
[399166582,1766130691658,-500.0,0.00057534,120]
[399166583,1766130691667,-500.0,0.00057534,120]
[399166584,1766130691677,-475.0,0.00057534,120]
[399166585,1766130691688,-500.0,0.00057534,120]
[399166586,1766130691699,-500.0,0.00057534,120]
[399166587,1766130691710,-150.0,0.00057534,120]
[399166588,1766130691720,-475.0,0.00057534,120]
[399166589,1766130691730,-364.50267144,0.00057534,120]
[399166590,1766130691739,-500.0,0.00057534,120]
[399166591,1766130691748,-150.0,0.00057534,120]
[399166592,1766130691757,-150.0,0.00057534,120]
[399166593,1766130691766,-500.0,0.00057534,120]
[399166594,1766130691775,-861.29,0.00057534,120]
[399166595,1766130691784,-500.0,0.00057534,120]
[399166596,1766130691793,-155.76037624,0.00057534,120]
[399166597,1766130691802,-475.0,0.00057534,120]
[399166598,1766130691811,-297.04380184,0.00057534,120]
[399166599,1766130691820,-500.0,0.00057534,120]
[399166600,1766130691829,-167.22232219,0.00057534,120]
[399166601,1766130691838,-475.0,0.00057534,120]
[399166602,1766130691847,-475.0,0.00057534,120]
[399166603,1766130691858,-150.0,0.00057534,120]
[399166604,1766130691867,-150.0,0.00057534,120]
[399166605,1766130691876,-150.0,0.00057534,120]
[399166606,1766130691885,-150.0,0.00057534,120]
[399166607,1766130691894,-161.37198714,0.00057534,120]
[399166608,1766130691904,-481.34704788,0.00057534,120]
[399166609,1766130691914,-500.0,0.00057534,120]
[399166610,1766130691923,-4150.56,0.00057534,120]
[399166611,1766130691932,-500.0,0.00057534,120]
[399166612,1766130691941,-500.0,0.00057534,120]
[399166613,1766130691951,-500.0,0.00057534,120]
[399166614,1766130691960,-1545.59,0.00057534,120]
[399166615,1766130691969,-601.18,0.00057534,120]
[399166616,1766130691978,-501.96870569,0.00057534,120]
[399166617,1766130691988,-500.0,0.00057534,120]
[399166618,1766130691997,-500.0,0.00057534,120]
[399166619,1766130692006,-3273.78,0.00057534,120]
[399166620,1766130692016,-2163.92,0.00057534,120]
[399166621,1766130692025,-615.54,0.00057534,120]
[399166622,1766130692037,-2441.66,0.00057534,3]
[399166623,1766130692047,-500.0,0.00057534,120]
[399166624,1766130692057,-500.0,0.00057534,120]
[399166625,1766130692066,-500.0,0.00057534,120]
[399166626,1766130692075,-500.0,0.00057534,120]
[399166627,1766130692085,-150.0,0.00057534,120]
[399166628,1766130692095,-500.0,0.00057534,120]
[399166629,1766130692106,-500.0,0.00057534,120]
[399166630,1766130692115,-150.0,0.00057534,120]
[399166631,1766130692125,-500.0,0.00057534,120]
[399166632,1766130692135,-500.0,0.00057534,120]
[399166633,1766130692145,-254.51662389,0.00057534,120]
[399166634,1766130692155,-500.0,0.00057534,120]
[399166635,1766130692164,-500.0,0.00057534,120]
[399166636,1766130692174,-419.17602868,0.00057534,120]
[399166637,1766130692183,-500.0,0.00057534,120]
[399166638,1766130692193,-150.0,0.00057534,2]
[399166639,1766130692203,-500.0,0.00057534,120]
[399166640,1766130692213,-500.0,0.00057534,120]
[399166641,1766130692222,-500.0,0.00057534,120]
[399166642,1766130692231,-500.0,0.00057534,120]
[399166643,1766130692242,-500.0,0.00057534,120]
[399166644,1766130692252,-500.0,0.00057534,120]
[399166645,1766130692262,-500.0,0.00057534,120]
[399166646,1766130692271,-500.0,0.00057534,120]
[399166647,1766130692283,-500.0,0.00057534,120]
[399166648,1766130692293,-500.0,0.00057534,120]
[399166649,1766130692303,-500.0,0.00057534,120]
[399166650,1766130692313,-500.0,0.00057534,120]
[399166651,1766130692323,-500.0,0.00057534,120]
[399166652,1766130692332,-500.0,0.00057534,120]
[399166653,1766130692341,-500.0,0.00057534,120]
[399166654,1766130692356,-500.0,0.00057534,120]
[399166655,1766130692365,-305.18331428,0.00057534,120]
[399166656,1766130692374,-309.94014788,0.00057534,120]
[399166657,1766130692383,-500.0,0.00057534,120]
[399166658,1766130692392,-535.83,0.00057534,120]
[399166659,1766130692402,-594.2435253,0.00057534,120]